lending/lending_fUSD_20260330
["ID","MTS","AMOUNT","RATE_DAILY","PERIOD"]
[419076363,1774837841181,-166.66,0.00010813,2]
[419076364,1774837841191,-363.74,0.00010822,2]
[419076365,1774837841200,-4593.44860376,0.000109,2]
[419076366,1774837841208,-4593.44860376,0.000109,2]
[419076367,1774837841217,-4593.44860376,0.000109,2]
[419076368,1774837841226,-500.0,0.00010959,2]
[419076369,1774837841236,-150.0,0.00010959,2]
[419076370,1774837841244,-196.8565,0.00011,7]
[419076371,1774837841254,-2249.48823067,0.00011,2]
[419076372,1774837841264,-500.0,0.0001103,2]
[419076373,1774837841273,-276.62,0.00011049,2]
[419076374,1774837841282,-363.74660297,0.00011096,2]
[419076375,1774837841291,-200.0,0.00011096,2]
[419076376,1774837841302,-17704.82042326,0.00011099,2]
[419076377,1774837841313,-17704.82042323,0.00011099,2]
[419076378,1774837841323,-17704.82042323,0.00011099,2]
[419076379,1774837841332,-10324.49754852,0.00011099,2]
[419076380,1774837841342,-10324.49754851,0.00011099,2]
[419076381,1774837841353,-10324.49754851,0.00011099,2]
[419076382,1774837841364,-17704.82042323,0.00011132,2]
[419076383,1774837841373,-166.66,0.00011148,2]
[419076384,1774837841383,-10324.49754851,0.00011159,2]
[419076385,1774837841394,-171.44,0.00011175,2]
[419076386,1774837841404,-616.59,0.00011176,30]
[419076387,1774837841415,-6080.8,0.00011316,2]
[419076388,1774837841426,-93817.629192,0.00011373,2]
[419076389,1774837841435,-250.0,0.00011427,2]
[419076390,1774837841448,-166.66,0.00011483,2]
[419076391,1774837841458,-2446.63,0.00011507,2]
[419076392,1774837841468,-3292.0,0.00011541,2]
[419076393,1774837841478,-823.0,0.00011643,2]
[419076394,1774837841488,-736.0,0.00011643,2]
[419076395,1774837841498,-200.0,0.00011644,2]
[419076396,1774837841509,-171.44,0.00011683,2]
[419076397,1774837841519,-166.66,0.00011818,2]
[419076398,1774837841529,-4593.44860376,0.00011837,2]
[419076399,1774837841539,-17704.82042323,0.00011927,2]
[419076400,1774837841549,-10324.49754851,0.00011949,2]
[419076401,1774837841558,-200.0,0.00012,2]
[419076402,1774837841568,-503.0,0.00012082,2]
[419076403,1774837841578,-171.44,0.00012191,2]
[419076404,1774837841587,-200.0,0.00012192,2]
[419076405,1774837841596,-924.89,0.00012258,30]
[419076406,1774837841606,-189.600337,0.00012383,2]
[419076407,1774837841615,-320.868293,0.00012383,2]
[419076408,1774837841625,-194.827712,0.00012383,2]
[419076409,1774837841634,-258.3499,0.000125,12]
[419076410,1774837841644,-788.32457,0.00012635,2]
[419076411,1774837841655,-9808.099162,0.00012635,2]
[419076412,1774837841665,-2400.823566,0.00012635,2]
[419076413,1774837841675,-2396.052715,0.00012635,2]
[419076414,1774837841684,-298.672345,0.00012635,2]
[419076415,1774837841694,-350.841762,0.00012635,2]
[419076416,1774837841703,-93817.629192,0.00012636,2]
[419076417,1774837841713,-4609.0,0.00012695,2]
[419076418,1774837841723,-171.44,0.00012699,2]
[419076419,1774837841733,-17704.82042323,0.00012721,2]
[419076420,1774837841743,-10324.49754851,0.0001274,2]
[419076421,1774837841753,-200.0,0.0001274,2]
[419076422,1774837841763,-1252.0,0.00012806,2]
[419076423,1774837841773,-1152.0,0.00012807,2]
[419076424,1774837841782,-4593.44860376,0.00012852,2]
[419076425,1774837841792,-2624.82,0.0001288,2]
[419076426,1774837841801,-426.10763238,0.00012888,2]
[419076427,1774837841811,-3396.67,0.00012893,2]
[419076428,1774837841821,-13555.55,0.00012893,2]
[419076429,1774837841830,-29999.99,0.00012893,2]
[419076430,1774837841840,-2300.0,0.000129,4]
[419076431,1774837841850,-186.621831,0.00012956,2]
[419076432,1774837841859,-194.827712,0.00012956,2]
[419076433,1774837841868,-150.0,0.00013059,2]
[419076434,1774837841878,-160.0,0.00013079,2]
[419076435,1774837841887,-756.5919605,0.0001308,2]
[419076436,1774837841899,-578.0,0.00013096,2]
[419076437,1774837841908,-502.0,0.00013151,2]
[419076438,1774837841919,-200.0,0.00013151,2]
[419076439,1774837841929,-200.0,0.00013151,2]
[419076440,1774837841940,-200.0,0.00013151,2]
[419076441,1774837841951,-200.0,0.00013151,2]
[419076442,1774837841962,-200.0,0.00013151,2]
[419076443,1774837841971,-200.0,0.00013151,2]
[419076444,1774837841981,-200.0,0.00013151,2]
[419076445,1774837841991,-200.0,0.00013151,2]
[419076446,1774837842002,-200.0,0.00013151,2]
[419076447,1774837842011,-200.0,0.00013151,2]
[419076448,1774837842021,-200.0,0.00013151,2]
[419076449,1774837842031,-200.0,0.00013151,2]
[419076450,1774837842040,-200.0,0.00013151,2]
[419076451,1774837842050,-200.0,0.00013151,2]
[419076452,1774837842060,-200.0,0.00013151,2]
[419076453,1774837842070,-200.0,0.00013151,2]
[419076454,1774837842079,-200.0,0.00013151,2]
[419076455,1774837842088,-200.0,0.00013151,2]
[419076456,1774837842097,-200.0,0.00013151,2]
[419076457,1774837842107,-200.0,0.00013151,2]
[419076458,1774837842117,-200.0,0.00013151,2]
[419076459,1774837842129,-200.0,0.00013151,2]
[419076460,1774837842139,-200.0,0.00013151,2]
[419076461,1774837842149,-200.0,0.00013151,2]
[419076462,1774837842158,-200.0,0.00013151,2]
[419076463,1774837842167,-200.0,0.00013151,2]
[419076464,1774837842176,-200.0,0.00013151,2]
[419076466,1774837842185,-200.0,0.00013151,2]
[419076467,1774837842194,-200.0,0.00013151,2]
[419076468,1774837842205,-200.0,0.00013151,2]
[419076469,1774837842214,-200.0,0.00013151,2]
[419076470,1774837842225,-262.376114,0.00013151,2]
[419076471,1774837842236,-150.0,0.00013152,2]
[419076472,1774837842245,-171.44,0.00013207,2]
[419076473,1774837842256,-128078.7359602,0.0001322,2]
[419076474,1774837842266,-1000.0,0.00013229,2]
[419076475,1774837842276,-1000.0,0.00013264,2]
[419076476,1774837842286,-200.0,0.00013288,2]
[419076477,1774837842298,-152.0,0.0001333,3]
[419076478,1774837842308,-218.64346577,0.00013336,2]
[419076479,1774837842317,-5965.31221642,0.00013337,2]
[419076480,1774837842326,-1233.18,0.0001334,30]
[419076481,1774837842335,-3990.5078046,0.00013346,2]
[419076482,1774837842346,-262883.9836837,0.00013346,2]
[419076483,1774837842356,-200.0,0.0001335,2]
[419076484,1774837842365,-637.43779345,0.0001335,2]
[419076485,1774837842375,-324.63190009,0.0001335,2]
[419076486,1774837842385,-200.0,0.0001335,2]
[419076487,1774837842394,-3240.0,0.00013425,2]
[419076488,1774837842403,-152.0,0.00013441,4]
[419076490,1774837842412,-436.49,0.00013465,2]
[419076491,1774837842422,-200.0,0.00013484,2]
[419076492,1774837842431,-200.0,0.00013484,2]
[419076493,1774837842440,-434.24,0.00013491,2]
[419076494,1774837842450,-17704.82042323,0.00013516,2]
[419076495,1774837842459,-10324.49754851,0.0001353,2]
[419076497,1774837842468,-7011.0,0.00013549,5]
[419076498,1774837842477,-152.0,0.00013553,5]
[419076499,1774837842487,-7928.85268728,0.00013617,2]
[419076500,1774837842496,-200.0,0.00013618,2]
[419076502,1774837842505,-152.0,0.00013665,6]
[419076504,1774837842515,-960.08517506,0.0001367,2]
[419076506,1774837842524,-160.0,0.0001367,2]
[419076507,1774837842534,-160.0,0.0001367,2]
[419076508,1774837842543,-4881.99,0.0001367,2]
[419076509,1774837842552,-564.47601303,0.00013698,2]
[419076510,1774837842561,-500.0,0.00013698,2]
[419076511,1774837842571,-500.0,0.00013698,2]
[419076512,1774837842580,-250.39720562,0.00013698,2]
[419076513,1774837842611,-249.60279438,0.00013698,2]
[419076514,1774837842620,-500.0,0.00013698,2]
[419076515,1774837842629,-500.0,0.00013698,2]
[419076516,1774837842638,-400.22775168,0.00013698,2]
[419076517,1774837842902,-99.77224832,0.00013698,2]
[419076518,1774837842911,-500.0,0.00013698,2]
[419076519,1774837842921,-500.0,0.00013698,2]
[419076520,1774837842931,-500.0,0.00013698,2]
[419076521,1774837842940,-188.22775168,0.00013698,2]
[419076522,1774837842951,-311.77224832,0.00013698,2]
[419076523,1774837842960,-500.0,0.00013698,2]
[419076524,1774837842970,-500.0,0.00013698,2]
[419076525,1774837842979,-500.0,0.00013698,2]
[419076526,1774837842989,-500.0,0.00013698,2]
[419076527,1774837842998,-500.0,0.00013698,2]
[419076528,1774837843008,-500.0,0.00013698,2]
[419076529,1774837843018,-500.0,0.00013698,2]
[419076530,1774837843028,-500.0,0.00013698,2]
[419076531,1774837843037,-500.0,0.00013698,2]
[419076532,1774837843046,-500.0,0.00013698,2]
[419076533,1774837843055,-500.0,0.00013698,2]
[419076534,1774837843066,-500.0,0.00013698,2]
[419076535,1774837843075,-500.0,0.00013698,2]
[419076536,1774837843086,-500.0,0.00013698,2]
[419076537,1774837843095,-500.0,0.00013698,2]
[419076538,1774837843105,-500.0,0.00013698,2]
[419076539,1774837843114,-500.0,0.00013698,2]
[419076540,1774837843124,-500.0,0.00013698,2]
[419076541,1774837843133,-500.0,0.00013698,2]
[419076542,1774837843143,-503.70239427,0.00013698,2]
[419076543,1774837843152,-500.0,0.00013698,2]
[419076544,1774837843162,-500.0,0.00013698,2]
[419076545,1774837843172,-500.0,0.00013698,2]
[419076546,1774837843182,-500.0,0.00013698,2]
[419076547,1774837843191,-500.0,0.00013698,2]
[419076548,1774837843200,-500.0,0.00013698,2]
[419076549,1774837843210,-500.0,0.00013698,2]
[419076550,1774837843220,-500.0,0.00013698,2]
[419076551,1774837843229,-500.0,0.00013698,2]
[419076552,1774837843239,-423.16825762,0.00013698,2]
[419076562,1774837845657,-76.83174238,0.00013698,2]
[419076563,1774837845666,-500.0,0.00013698,2]
[419076564,1774837845675,-346.16825762,0.00013698,2]
[419076565,1774837845820,-153.83174238,0.00013698,2]
[419076566,1774837845830,-219.78170118,0.00013698,2]
[419076567,1774837845857,-280.21829882,0.00013698,2]
[419076569,1774837845866,-500.0,0.00013698,2]
[419076571,1774837845875,-531.4956433,0.00013698,2]
[419076573,1774837845884,-500.0,0.00013698,2]
[419076575,1774837845893,-500.0,0.00013698,2]
[419076577,1774837845902,-500.0,0.00013698,2]
[419076579,1774837845910,-500.0,0.00013698,2]
[419076581,1774837845919,-500.0,0.00013698,2]
[419076583,1774837845929,-500.0,0.00013698,2]
[419076585,1774837845938,-500.0,0.00013698,2]
[419076587,1774837845947,-514.25067102,0.00013698,2]
[419076589,1774837845956,-500.0,0.00013698,2]
[419076591,1774837845966,-500.0,0.00013698,2]
[419076593,1774837845975,-500.0,0.00013698,2]
[419076595,1774837845984,-502.82113856,0.00013698,2]
[419076597,1774837845993,-500.0,0.00013698,2]
[419076599,1774837846002,-500.0,0.00013698,2]
[419076601,1774837846011,-500.0,0.00013698,2]
[419076603,1774837846020,-1061.69,0.00013698,2]
[419076605,1774837846029,-1061.69,0.00013698,2]
[419076606,1774837846038,-1061.69,0.00013698,2]
[419076608,1774837846048,-1061.69,0.00013698,2]
[419076610,1774837846056,-1061.69,0.00013698,2]
[419076612,1774837846066,-1061.69,0.00013698,2]
[419076614,1774837846075,-1061.69,0.00013698,2]
[419076616,1774837846085,-500.0,0.00013698,2]
[419076618,1774837846097,-500.0,0.00013698,2]
[419076620,1774837846108,-500.0,0.00013698,2]
[419076622,1774837846117,-500.0,0.00013698,2]
[419076624,1774837846126,-500.0,0.00013698,2]
[419076626,1774837846135,-500.0,0.00013698,2]
[419076628,1774837846143,-500.0,0.00013698,2]
[419076630,1774837846153,-500.0,0.00013698,2]
[419076632,1774837846162,-500.0,0.00013698,2]
[419076634,1774837846171,-500.0,0.00013698,2]
[419076636,1774837846180,-561.2360171,0.00013698,2]
[419076638,1774837846190,-500.0,0.00013698,2]
[419076640,1774837846199,-500.0,0.00013698,2]
[419076642,1774837846208,-500.0,0.00013698,2]
[419076644,1774837846216,-137.37495015,0.00013698,2]
[419076647,1774837846228,-362.62504985,0.00013698,2]
[419076649,1774837846237,-137.37495015,0.00013698,2]
[419076680,1774837945383,1105.61,0.0002,120]
[419076685,1774838104529,-150.0,0.00046924,7]
[419076687,1774838390457,500.0,8.63e-05,2]
[419076688,1774838391705,500.0,8.63e-05,2]
[419076689,1774838393185,500.0,8.63e-05,2]
[419076690,1774838394238,500.0,8.63e-05,2]
[419076691,1774838395605,500.0,8.63e-05,2]
[419076692,1774838396771,500.0,8.63e-05,2]
[419076693,1774838398285,500.0,8.63e-05,2]
[419076694,1774838400740,500.0,8.63e-05,2]
[419076695,1774838400907,500.0,8.63e-05,2]
[419076696,1774838402191,500.0,8.63e-05,2]
[419076697,1774838404314,500.0,8.63e-05,2]
[419076698,1774838405405,500.0,8.63e-05,2]
[419076707,1774838598927,171.35,8.336e-05,2]
[419076708,1774838630635,861.73,8.047e-05,2]
[419076709,1774838827924,700.0,8.9e-05,3]
[419076710,1774838830013,1400.0,9e-05,3]
[419076711,1774838993936,5000.01,8.547e-05,2]
[419076712,1774838993963,9138.28,8.547e-05,2]
[419076713,1774838993987,10000.01,8.547e-05,2]
[419076714,1774838994012,10000.01,8.547e-05,2]
[419076715,1774838994039,10000.01,8.547e-05,2]
[419076716,1774838994066,10000.01,8.547e-05,2]
[419076717,1774838994094,10000.01,8.547e-05,2]
[419076718,1774838994120,10000.01,8.547e-05,2]
[419076719,1774838994144,10000.01,8.547e-05,2]
[419076720,1774838994169,10000.01,8.547e-05,2]
[419076721,1774838994192,10000.01,8.547e-05,2]
[419076722,1774839012276,229.0,0.0002,120]
[419076735,1774839033189,-300.0,8.546e-05,2]
[419076736,1774839033199,-300.0,8.546e-05,2]
[419076737,1774839033209,-405.3639732,8.546e-05,2]
[419076739,1774839033363,-347.8503141,8.546e-05,2]
[419076741,1774839033520,-446.7857127,8.546e-05,2]
[419076742,1774839033530,-81528.66908079,8.547e-05,2]
[419076743,1774839033542,-1552.98,8.547e-05,2]
[419076744,1774839033575,-284.15203215,8.547e-05,2]
[419076745,1774839033586,-418.75,8.547e-05,2]
[419076746,1774839033598,-1640.67172989,8.547e-05,2]
[419076747,1774839033609,-1794.47750331,8.547e-05,2]
[419076748,1774839033624,-4914.58864931,8.547e-05,2]
[419076749,1774839035574,-498.89387459,8.547e-05,2]
[419076752,1774839037779,-208.37525573,8.546e-05,2]
[419076753,1774839037788,-242.18743965,8.546e-05,2]
[419076754,1774839037798,-188.76432717,8.547e-05,2]
[419076755,1774839037954,-852.28154803,8.547e-05,2]
[419076756,1774839038008,-9015.85600549,8.547e-05,2]
[419076757,1774839038062,-2142.12050076,8.547e-05,2]
[419076786,1774839040434,-157145.74594851,8.547e-05,2]
[419076787,1774839040444,-300.0,8.646e-05,2]
[419076788,1774839040454,-150.0,8.646e-05,2]
[419076789,1774839040463,-250.0,8.647e-05,2]
[419076790,1774839040472,-2500.0,8.647e-05,2]
[419076791,1774839040481,-500.31742953,8.723e-05,2]
[419076792,1774839040491,-500.63749024,8.723e-05,2]
[419076793,1774839040503,-3869.56401357,8.746e-05,2]
[419076794,1774839040512,-234.0,9.401e-05,2]
[419076795,1774839040522,-420.0,9.401e-05,2]
[419076796,1774839040531,-1680.0,9.401e-05,2]
[419076797,1774839040541,-194.61263594,9.402e-05,2]
[419076798,1774839040550,-151.0,9.494e-05,2]
[419076799,1774839040559,-150.0,9.5e-05,2]
[419076800,1774839040569,-250.0,9.511e-05,2]
[419076801,1774839040578,-255.0,9.511e-05,2]
[419076802,1774839040598,-470.44762194,9.513e-05,2]
[419076803,1774839040608,-1343.0,9.54e-05,2]
[419076804,1774839040618,-4881.99,9.554e-05,2]
[419076805,1774839040627,-9999.99,9.621e-05,2]
[419076806,1774839040636,-4148.0,9.621e-05,2]
[419076807,1774839040647,-13215.7,9.621e-05,2]
[419076808,1774839040657,-9999.99,9.621e-05,2]
[419076809,1774839040667,-1230.94,9.655e-05,2]
[419076810,1774839040677,-150.99,9.8e-05,2]
[419076811,1774839040686,-9999.99,9.8e-05,2]
[419076812,1774839040696,-756.59196051,0.0001,2]
[419076813,1774839040705,-587.0,0.00010341,2]
[419076814,1774839040715,-2351.0,0.00010341,2]
[419076815,1774839040724,-721.0,0.00010397,2]
[419076816,1774839040735,-171.35,0.0001042,2]
[419076817,1774839040745,-433.0,0.00010462,2]
[419076818,1774839040756,-508.0,0.00010567,2]
[419076819,1774839040765,-151.0,0.00010677,2]
[419076820,1774839040775,-500.0,0.00010685,2]
[419076821,1774839040784,-151.0,0.00010685,2]
[419076822,1774839040794,-4996.92286626,0.000109,2]
[419076823,1774839040803,-4996.92286626,0.000109,2]
[419076824,1774839040812,-4996.92286626,0.000109,2]
[419076825,1774839040823,-500.0,0.00010959,2]
[419076826,1774839040832,-5531.65655379,0.00011,2]
[419076827,1774839040842,-196.8808,0.00011,7]
[419076828,1774839040852,-20709.2282014,0.00011099,2]
[419076829,1774839040862,-20709.22820138,0.00011099,2]
[419076830,1774839040872,-20709.22820138,0.00011099,2]
[419076831,1774839040882,-20709.22820138,0.00011099,2]
[419076832,1774839040892,-11581.87729843,0.00011099,2]
[419076833,1774839040902,-11581.87729836,0.00011099,2]
[419076834,1774839040911,-11581.87729836,0.00011099,2]
[419076835,1774839040921,-11581.87729836,0.00011099,2]
[419076836,1774839040931,-485.57,0.00011231,2]
[419076837,1774839040940,-421.60378826,0.00011233,2]
[419076838,1774839040950,-13555.55,0.00011281,2]
[419076839,1774839040960,-3318.94,0.00011281,2]
[419076840,1774839040970,-823.0,0.00011375,2]
[419076841,1774839040980,-3292.0,0.00011375,2]
[419076842,1774839040989,-308.47,0.00011379,2]
[419076843,1774839040999,-250.0,0.00011424,2]
[419076844,1774839041009,-736.0,0.00011508,2]
[419076845,1774839041019,-4996.92286626,0.00011755,2]
[419076846,1774839041028,-20709.22820138,0.00011871,2]
[419076847,1774839041038,-11581.87729836,0.00011871,2]
[419076848,1774839041048,-2200.0,0.000119,4]
[419076849,1774839041058,-150.0,0.00011953,2]
[419076850,1774839041069,-200.0,0.00012,2]
[419076852,1774839041079,-48004.48,0.00012055,2]
[419076853,1774839041094,-2000.0,0.0001208,2]
[419076854,1774839041105,-307.04252937,0.0001238,2]
[419076855,1774839041115,-258.4137,0.000125,12]
[419076856,1774839041125,-166.66,0.00012501,2]
[419076857,1774839041135,-171.35,0.00012504,2]
[419076858,1774839041145,-1152.0,0.00012513,2]
[419076859,1774839041156,-4609.0,0.00012513,2]
[419076860,1774839041166,-756.5919605,0.00012656,2]
[419076861,1774839041177,-1252.0,0.00012658,2]
[419076862,1774839041187,-20709.22820138,0.00012676,2]
[419076863,1774839041197,-11581.87729836,0.00012676,2]
[419076864,1774839041208,-166.66,0.00012764,2]
[419076865,1774839041218,-460.64,0.00012774,2]
[419076866,1774839041228,-417.79,0.00012774,2]
[419076867,1774839041239,-299.85,0.00012774,2]
[419076868,1774839041249,-351.26,0.00012774,2]
[419076869,1774839041259,-4996.92286626,0.00012792,2]
[419076870,1774839041268,-273.81,0.00012877,2]
[419076871,1774839041278,-426.10763238,0.00012888,2]
[419076872,1774839041288,-417.79,0.00012909,2]
[419076873,1774839041297,-250.0,0.00013,2]
[419076874,1774839041308,-2000.0,0.00013,2]
[419076875,1774839041318,-166.66,0.00013027,2]
[419076876,1774839041328,-500.0,0.00013123,2]
[419076877,1774839041338,-200.0,0.00013151,2]
[419076878,1774839041349,-555.93,0.00013151,2]
[419076879,1774839041361,-306.0,0.00013233,2]
[419076880,1774839041372,-166.66,0.0001329,2]
[419076881,1774839041382,-2000.0,0.000133,2]
[419076882,1774839041393,-375.70481,0.00013424,2]
[419076883,1774839041404,-160.0,0.00013424,2]
[419076884,1774839041414,-3240.0,0.00013425,2]
[419076885,1774839041425,-555.93,0.00013425,2]
[419076886,1774839041435,-20709.22820138,0.00013482,2]
[419076887,1774839041446,-166.66,0.00013553,2]
[419076888,1774839041456,-2000.0,0.0001359,2]
[419076889,1774839041466,-2000.0,0.000136,2]
[419076890,1774839041476,-160.0,0.00013649,2]
[419076891,1774839041486,-160.0,0.00013649,2]
[419076892,1774839041497,-960.08517506,0.00013649,2]
[419076893,1774839041507,-160.0,0.00013649,2]
[419076894,1774839041519,-160.0,0.00013649,2]
[419076895,1774839041531,-500.70547877,0.00013673,2]
[419076896,1774839041542,-500.0,0.00013673,2]
[419076897,1774839041552,-200.0,0.0001369,2]
[419076898,1774839041562,-151.0,0.0001369,2]
[419076899,1774839041574,-151.0,0.0001369,2]
[419076900,1774839041584,-151.0,0.0001369,2]
[419076901,1774839041595,-500.0,0.00013697,2]
[419076902,1774839041604,-204.03103164,0.00013697,2]
[419076903,1774839041614,-176.24498328,0.00013697,2]
[419076904,1774839041624,-168.3696283,0.00013697,2]
[419076905,1774839041634,-500.0,0.00013697,2]
[419076906,1774839041643,-500.0,0.00013697,2]
[419076907,1774839041653,-223.32698862,0.00013697,2]
[419076908,1774839041663,-571.11949741,0.00013697,2]
[419076909,1774839041672,-500.0,0.00013697,2]
[419076910,1774839041682,-672.03504985,0.00013698,2]
[419076911,1774839041692,-809.41,0.00013698,2]
[419076912,1774839041702,-809.41,0.00013698,2]
[419076913,1774839041712,-809.41,0.00013698,2]
[419076914,1774839041723,-525.61,0.00013698,2]
[419076915,1774839041734,-525.61,0.00013698,2]
[419076916,1774839041745,-525.61,0.00013698,2]
[419076917,1774839041756,-525.61,0.00013698,2]
[419076918,1774839041765,-500.0,0.00013698,2]
[419076919,1774839041775,-500.0,0.00013698,2]
[419076920,1774839041785,-500.0,0.00013698,2]
[419076921,1774839041795,-500.0,0.00013698,2]
[419076922,1774839041805,-540.54,0.00013698,2]
[419076923,1774839041815,-540.54,0.00013698,2]
[419076924,1774839041827,-540.54,0.00013698,2]
[419076925,1774839041836,-540.54,0.00013698,2]
[419076926,1774839041846,-500.0,0.00013698,2]
[419076927,1774839041856,-500.0,0.00013698,2]
[419076928,1774839041866,-500.0,0.00013698,2]
[419076929,1774839041876,-500.0,0.00013698,2]
[419076930,1774839041886,-1133.93,0.00013698,2]
[419076931,1774839041896,-1133.93,0.00013698,2]
[419076932,1774839041907,-1133.93,0.00013698,2]
[419076933,1774839041917,-1133.93,0.00013698,2]
[419076934,1774839041927,-609.94,0.00013698,2]
[419076935,1774839041938,-609.94,0.00013698,2]
[419076936,1774839041949,-609.94,0.00013698,2]
[419076937,1774839041959,-609.94,0.00013698,2]
[419076938,1774839041969,-500.0,0.00013698,2]
[419076939,1774839041979,-500.0,0.00013698,2]
[419076940,1774839041990,-500.0,0.00013698,2]
[419076941,1774839041999,-500.0,0.00013698,2]
[419076942,1774839042009,-500.0,0.00013698,2]
[419076943,1774839042019,-500.0,0.00013698,2]
[419076944,1774839042028,-500.0,0.00013698,2]
[419076945,1774839042038,-500.0,0.00013698,2]
[419076946,1774839042048,-500.0,0.00013698,2]
[419076947,1774839042059,-500.0,0.00013698,2]
[419076948,1774839042070,-500.0,0.00013698,2]
[419076949,1774839042080,-500.0,0.00013698,2]
[419076950,1774839042090,-500.0,0.00013698,2]
[419076951,1774839042100,-500.0,0.00013698,2]
[419076952,1774839042111,-500.0,0.00013698,2]
[419076953,1774839042122,-500.0,0.00013698,2]
[419076954,1774839042132,-500.0,0.00013698,2]
[419076955,1774839042143,-500.0,0.00013698,2]
[419076956,1774839042152,-500.0,0.00013698,2]
[419076957,1774839042162,-500.0,0.00013698,2]
[419076958,1774839042173,-500.0,0.00013698,2]
[419076959,1774839042183,-500.0,0.00013698,2]
[419076960,1774839042193,-500.0,0.00013698,2]
[419076961,1774839042203,-500.0,0.00013698,2]
[419076962,1774839042212,-539.17,0.00013698,2]
[419076963,1774839042222,-539.17,0.00013698,2]
[419076964,1774839042233,-539.17,0.00013698,2]
[419076965,1774839042244,-539.17,0.00013698,2]
[419076966,1774839042254,-500.0,0.00013698,2]
[419076967,1774839042264,-500.0,0.00013698,2]
[419076968,1774839042273,-500.0,0.00013698,2]
[419076969,1774839042283,-500.0,0.00013698,2]
[419076970,1774839042293,-500.0,0.00013698,2]
[419076971,1774839042303,-500.0,0.00013698,2]
[419076972,1774839042313,-500.0,0.00013698,2]
[419076973,1774839042323,-500.0,0.00013698,2]
[419076974,1774839042333,-157.091942,0.00013698,2]
[419076975,1774839042343,-15619.3048361,0.00013698,2]
[419076976,1774839042352,-2992.8808534,0.00013698,2]
[419076977,1774839042362,-311267.4939905,0.00013698,2]
[419076978,1774839042372,-500.0,0.00013698,2]
[419076979,1774839042381,-500.0,0.00013698,2]
[419076980,1774839042391,-250.39720562,0.00013698,2]
[419076981,1774839042400,-150.0,0.00013698,2]
[419076982,1774839042409,-500.0,0.00013698,2]
[419076983,1774839042419,-611.00727379,0.00013698,2]
[419076984,1774839042429,-200.0,0.00013699,2]
[419076985,1774839042438,-5681.74,0.00013699,2]
[419076986,1774839042448,-500.0,0.00013699,2]
[419076987,1774839042458,-225.3975526,0.00013699,2]
[419076988,1774839042469,-500.0,0.00013699,2]
[419076989,1774839042479,-500.38401516,0.00013699,2]
[419076990,1774839042489,-500.0,0.00013699,2]
[419076991,1774839042499,-500.0,0.00013699,2]
[419076992,1774839042508,-500.0,0.00013699,2]
[419076993,1774839042518,-500.0,0.00013699,2]
[419076994,1774839042528,-500.9494881,0.00013699,2]
[419076996,1774839042537,-500.0,0.00013699,2]
[419076998,1774839042547,-501.8822143,0.00013699,2]
[419077000,1774839042557,-500.0,0.00013699,2]
[419077001,1774839042566,-500.72919224,0.00013699,2]
[419077002,1774839042577,-500.0,0.00013699,2]
[419077003,1774839042586,-544.75961568,0.00013699,2]
[419077004,1774839042596,-504.31464421,0.00013699,2]
[419077005,1774839042607,-500.0,0.00013699,2]
[419077006,1774839042617,-500.0,0.00013699,2]
[419077007,1774839042627,-500.0,0.00013699,2]
[419077008,1774839042637,-500.0,0.00013699,2]
[419077009,1774839042647,-500.0,0.00013699,2]